bitfinex-derivatives/quotes_ETHF0:USTF0_20250410
["timestamp","ask_amount","ask_price","bid_price","bid_amount"]
[1744275467088,9.97303213,1591.5,1591.4,4.9875]
[1744275467384,1.2571,1591.4,1591.3,1.25718]
[1744275467585,5.0753,1591.4,1591.3,4.98758]
[1744275468589,1.25718,1591.3,1591.2,1.25721]
[1744275468889,1.25718,1591.3,1591.2,4.98761]
[1744275469088,8.77426,1591.4,1591.2,4.98761]
[1744275469387,8.77426,1591.4,1591.3,4.98758]
[1744275469681,8.77426,1591.4,1591.3,3.7304]
[1744275470187,8.77426,1591.4,1591.3,4.98758]
[1744275470984,4.89041213,1591.5,1591.4,1.2571]
[1744275471184,4.89041213,1591.5,1591.4,4.947]
[1744275472189,6.14743213,1591.5,1591.4,4.947]
[1744275472376,9.92583213,1591.5,1591.4,4.947]
[1744275472686,8.66881213,1591.5,1591.4,4.947]
[1744275472887,4.89041213,1591.5,1591.4,4.947]
[1744275473687,4.89041213,1591.5,1591.4,8.1548]
[1744275473991,4.89041213,1591.5,1591.4,13.1548]
[1744275474686,4.89041213,1591.5,1591.4,17.0041]
[1744275475892,4.89041213,1591.5,1591.4,12.0041]
[1744275476093,9.75067313,1591.7,1591.6,1.25694]
[1744275476094,4.89041213,1591.7,1591.6,1.25694]
[1744275476687,9.89041213,1591.7,1591.3,5.99599981]
[1744275476893,5.04628,1591.6,1591.4,4.90125]
[1744275477093,3.7893,1591.6,1591.5,4.90122]
[1744275477991,5.04624,1591.6,1591.5,3.6442]
[1744275478192,8.74664,1591.6,1591.5,3.6442]
[1744275478796,1.25704,1591.5,1591.3,7.25311981]
[1744275478983,3.7494,1591.4,1591.3,10.99061981]
[1744275479390,3.7494,1591.4,1591.3,4.99462]
[1744275480099,1.25726,1591.2,1591.0,19.06238296]
[1744275480298,3.7494,1591.1,1591.0,24.05730296]
[1744275480491,3.7004,1591.3,1591.2,1.25726]
[1744275480692,7.4498,1591.3,1591.2,1.25726]
[1744275480896,7.4498,1591.3,1591.1,3.7375]
[1744275481097,3.7494,1591.2,1591.1,4.99479]
[1744275481299,5.00666,1591.2,1591.1,4.99479]
[1744275481496,5.00666,1591.2,1591.1,3.7375]
[1744275481697,1.25734,1591.1,1591.0,44.01724019]
[1744275481891,7.3978,1591.1,1591.0,4.47466019]
[1744275482204,7.3978,1591.1,1591.0,8.27006019]
[1744275482405,4.95763,1591.3,1591.1,1.25729]
[1744275482703,1.25734,1591.1,1591.0,3.80484019]
[1744275482893,1.25734,1591.1,1591.0,0.00944019]
[1744275483096,6.25734,1591.1,1591.0,0.00944019]
[1744275483295,10.08754,1591.1,1591.0,0.00944019]
[1744275484911,14.97795213,1591.1,1591.0,0.00944019]
[1744275485103,9.97795213,1591.1,1591.0,0.00944019]
[1744275489506,10.92112762,1591.1,1591.0,0.00944019]
[1744275491005,10.92112762,1591.1,1591.0,1.26686019]
[1744275491306,10.92112762,1591.1,1591.0,4.87606019]
[1744275491503,5.83358762,1591.1,1591.0,4.87606019]
[1744275491700,7.09092762,1591.1,1591.0,4.87606019]
[1744275491906,7.09092762,1591.1,1591.0,8.58316019]
[1744275492902,5.83358762,1591.1,1591.0,8.58316019]
[1744275493113,5.83358762,1591.1,1591.0,13.58316019]
[1744275493407,6.14765213,1591.3,1591.1,1.25729]
[1744275493605,6.14765213,1591.3,1591.1,8.50249]
[1744275493808,6.14765213,1591.3,1591.2,3.6092]
[1744275495005,9.84035213,1591.3,1591.2,3.6092]
[1744275496509,1.25734,1591.1,1591.0,3.71654019]
[1744275496811,3.678,1591.2,1591.1,1.25734]
[1744275497007,3.678,1591.2,1591.1,4.81874]
[1744275497207,4.93526,1591.2,1591.1,3.5614]
[1744275497409,7.4425,1591.2,1591.1,4.81874]
[1744275497711,7.4425,1591.2,1591.1,3.5614]
[1744275497902,8.69976,1591.2,1591.1,4.81874]
[1744275499607,7.4425,1591.2,1591.0,4.97391019]
[1744275499811,1.25734,1591.1,1591.0,8.53531019]
[1744275500110,8.65464,1591.1,1591.0,7.27794019]
[1744275500311,8.65464,1591.1,1591.0,3.57084019]
[1744275501017,8.65464,1591.1,1591.0,0.00944019]
[1744275501911,11.86244,1591.1,1591.0,0.00944019]
[1744275503211,8.65464,1591.1,1591.0,0.00944019]
[1744275503410,8.65464,1591.1,1591.0,1.26686019]
[1744275503608,8.65464,1591.1,1591.0,0.00944019]
[1744275503911,8.65464,1591.1,1591.0,1.26686019]
[1744275504108,8.65464,1591.1,1591.0,0.00944019]
[1744275504514,8.65464,1591.1,1591.0,1.26686019]
[1744275504715,3.6328,1591.1,1591.0,4.89016019]
[1744275504915,7.3522,1591.2,1591.1,1.25734]
[1744275505118,7.3522,1591.2,1591.1,4.88064]
[1744275505819,14.68088608,1591.2,1591.1,4.88064]
[1744275506118,11.00668608,1591.2,1591.1,4.88064]
[1744275506319,11.00668608,1591.2,1591.1,8.65954]
[1744275506514,12.26394608,1591.2,1591.1,7.4022]
[1744275506816,12.26394608,1591.2,1591.1,8.65954]
[1744275507213,16.10064608,1591.2,1591.1,4.88064]
[1744275507423,14.84338608,1591.2,1591.1,4.88064]
[1744275508211,11.00668608,1591.2,1591.1,4.88064]
[1744275508412,7.32868608,1591.2,1591.1,4.88064]
[1744275509020,8.58594608,1591.2,1591.1,3.6233]
[1744275509218,12.25574608,1591.2,1591.1,3.6233]
[1744275509824,7.32868608,1591.2,1591.1,4.88064]
[1744275510023,9.85630782,1591.3,1591.1,4.88064]
[1744275510224,13.52610782,1591.3,1591.2,3.7047]
[1744275510420,12.26886782,1591.3,1591.0,1.26680019]
[1744275510617,4.46514,1591.1,1591.0,0.00944019]
[1744275511024,8.27244,1591.1,1591.0,0.00944019]
[1744275511327,13.27244,1591.1,1591.0,0.00944019]
[1744275511825,19.10644,1591.1,1591.0,0.00944019]
[1744275513119,22.83524,1591.1,1591.0,0.00944019]
[1744275513924,31.10721842,1591.1,1591.0,0.00944019]
[1744275516832,26.10721842,1591.1,1591.0,0.00944019]
[1744275517037,1.25766,1590.7,1590.6,7.4879]
[1744275517725,1.25766,1590.7,1590.6,8.74563]
[1744275519539,1.26703019,1590.8,1590.7,1.25766]
[1744275519740,0.00944019,1590.8,1590.7,4.87336]
[1744275520234,0.00944019,1590.8,1590.7,9.87336]
[1744275521341,0.00944019,1590.8,1590.7,15.86935981]
[1744275523640,0.00944019,1590.8,1590.7,56.66935981]
[1744275525040,6.14502157,1591.3,1591.1,1.2573]
[1744275525242,6.14502157,1591.3,1591.2,8.54326]
[1744275525540,6.14502157,1591.3,1591.2,7.286]
[1744275525740,4.88777157,1591.3,1591.2,8.54326]
[1744275525941,6.14495157,1591.3,1591.2,8.54326]
[1744275526142,6.14495157,1591.3,1591.2,7.286]
[1744275526936,4.88777157,1591.3,1591.2,8.54326]
[1744275527443,6.14495157,1591.3,1591.2,8.54326]
[1744275527742,6.14495157,1591.3,1591.2,7.286]
[1744275528335,4.88777157,1591.3,1591.2,11.75106]
[1744275528538,4.88777157,1591.3,1591.2,16.75106]
[1744275528742,4.88777157,1591.3,1591.2,22.74705981]
[1744275528943,7.34109755,1591.4,1591.3,1.25718]
[1744275529143,5.71580715,1591.4,1591.3,4.95208]
[1744275529341,5.71580715,1591.4,1591.3,9.95208]
[1744275529743,5.71580715,1591.4,1591.3,10.46392408]
[1744275531541,0.00944019,1591.4,1591.3,10.46392408]
[1744275532945,0.00944019,1591.4,1591.3,16.45992389]
[1744275534347,0.00944019,1591.4,1591.3,17.08872389]
[1744275534542,0.00944019,1591.4,1591.3,10.94807981]
[1744275535444,5.00944019,1591.4,1591.2,11.10634296]
[1744275535648,0.00944019,1591.4,1591.2,11.10639296]
[1744275535841,3.5883,1591.3,1591.2,13.61284296]
[1744275536044,3.5883,1591.3,1591.2,5.02096]
[1744275538441,3.5883,1591.3,1591.2,8.22876]
[1744275541448,3.5883,1591.3,1591.2,13.22876]
[1744275542252,3.5883,1591.3,1591.2,8.22876]
[1744275543053,0.00944019,1591.4,1591.3,1.25718]
[1744275544546,1.26654019,1591.4,1591.3,1.25718]
[1744275544751,0.00944019,1591.4,1591.3,1.25718]
[1744275550448,0.00944019,1591.4,1591.3,7.25317981]
[1744275551956,0.00944019,1591.4,1591.3,11.00797981]
[1744275553959,0.00944019,1591.4,1591.3,16.00797981]
[1744275554362,3.899,1592.1,1591.3,16.00797981]
[1744275554363,9.75067313,1592.2,1591.6,6.289]
[1744275554653,8.30362313,1592.2,1592.1,4.46435]
[1744275554850,8.30362313,1592.2,1592.1,55.55234981]
[1744275555953,0.00944019,1592.3,1592.2,1.25647]
[1744275557557,0.00944019,1592.3,1592.2,5.10447]
[1744275557757,0.00944019,1592.3,1592.2,8.68777]
[1744275558155,0.00944019,1592.3,1592.2,14.68376981]
[1744275559165,0.00944019,1592.3,1592.2,15.17992187]
[1744275562264,0.00944019,1592.3,1592.2,14.68376981]
[1744275564362,0.00944019,1592.3,1592.2,5.10447]
[1744275564864,3.63634019,1592.3,1592.2,5.10447]
[1744275565664,0.00944019,1592.3,1592.2,5.10447]
[1744275568658,5.00944019,1592.3,1592.2,1.25647]
[1744275568863,12.38044019,1592.3,1592.2,1.25647]
[1744275570263,7.38044019,1592.3,1592.2,1.25647]
[1744275570766,0.00944019,1592.3,1592.2,1.25647]
[1744275570967,0.00944019,1592.3,1592.2,8.65747]
[1744275573962,0.00944019,1592.3,1592.2,14.65346981]
[1744275575471,0.00944019,1592.3,1592.2,10.96066981]
[1744275576165,7.58054019,1592.3,1592.2,10.96066981]
[1744275576366,7.58054019,1592.3,1592.2,7.25246981]
[1744275578967,7.58054019,1592.3,1592.2,10.97916981]
[1744275579773,7.58054019,1592.3,1592.2,4.98317]
[1744275582171,0.00944019,1592.3,1592.2,4.98317]
[1744275582371,7.37934019,1592.3,1592.2,4.98317]
[1744275583365,7.37934019,1592.3,1592.2,1.25647]
[1744275585874,7.37934019,1592.3,1592.2,5.14037]
[1744275587765,7.37934019,1592.3,1592.2,1.25647]
[1744275588871,1.9e-07,1592.3,1592.2,12.25246981]
[1744275589071,3.6923,1592.9,1592.7,1.25602]
[1744275589275,7.4144,1592.9,1592.8,1.256]
[1744275589568,7.4144,1592.9,1592.8,4.4638]
[1744275589760,7.4144,1592.9,1592.8,1.256]
[1744275589966,7.4144,1592.9,1592.7,5.09993]
[1744275590172,3.7221,1592.8,1592.7,1.25603]
[1744275590375,11.04953815,1592.8,1592.7,1.25603]
[1744275592574,1.25608,1592.7,1592.6,40.8]
[1744275592769,7.2197,1592.7,1592.6,42.05615]
[1744275592970,7.2197,1592.7,1592.6,1.25615]
[1744275595381,3.6157,1592.7,1592.6,8.36955]
[1744275599082,3.6157,1592.7,1592.6,5.16175]
[1744275599678,3.6157,1592.7,1592.6,8.36955]
[1744275600275,3.6157,1592.7,1592.6,5.16175]
[1744275600577,3.6157,1592.7,1592.6,8.36955]
[1744275601376,3.9015,1592.8,1592.7,1.25608]
[1744275601582,3.9015,1592.8,1592.7,4.86718]
[1744275601783,5.1575,1592.8,1592.6,4.4639]
[1744275601973,3.7635,1592.7,1592.6,4.4639]
[1744275602276,7.4795,1592.7,1592.6,1.2561]
[1744275602471,7.4795,1592.7,1592.6,42.0561]
[1744275603079,6.9001,1592.9,1592.8,1.256]
[1744275603781,10.539,1592.9,1592.8,1.256]
[1744275603982,7.3312,1592.9,1592.8,8.7658]
[1744275604184,13.51786416,1593.0,1592.9,1.25592]
[1744275604586,13.51786416,1593.0,1592.9,4.87482]
[1744275605882,9.75436416,1593.0,1592.9,4.87482]
[1744275606082,9.75436416,1593.0,1592.9,8.69632]
[1744275607092,16.01026416,1593.0,1592.8,1.25593]
[1744275607387,15.44458,1592.9,1592.6,55.11942981]
[1744275607587,5.04341,1592.8,1592.6,51.91162981]
[1744275607788,5.04348,1592.7,1592.5,1.25617]
[1744275607975,12.23696,1592.6,1592.4,5.55825]
[1744275608179,12.23696,1592.6,1592.3,7.25238981]
[1744275608180,8.25148,1592.5,1592.3,7.25238981]
[1744275608488,5.04371,1592.4,1592.3,4.302]
[1744275609089,3.7874,1592.4,1592.3,5.55839]
[1744275609487,3.7874,1592.4,1592.3,9.41789]
[1744275612597,7.1934,1592.6,1592.5,1.25623]
[1744275612794,10.7125,1592.6,1592.5,1.25623]
[1744275613988,3.2078,1592.7,1592.6,1.25615]
[1744275614299,11.85048,1592.7,1592.6,1.25615]
[1744275614800,10.5944,1592.7,1592.6,1.25615]
[1744275615197,10.5944,1592.7,1592.5,3.5456]
[1744275615394,14.4332,1592.7,1592.5,3.5456]
[1744275615997,14.4332,1592.7,1592.6,1.25615]
[1744275616208,11.2254,1592.7,1592.6,5.56415]
[1744275616901,7.7045,1592.7,1592.6,5.56415]
[1744275617091,7.7045,1592.7,1592.6,9.20745]
[1744275618604,3.8657,1592.7,1592.6,12.41525]
[1744275618807,12.19903575,1592.8,1592.7,1.25608]
[1744275618999,12.19903575,1592.8,1592.7,4.89938]
[1744275619506,12.19903575,1592.8,1592.7,15.89537981]
[1744275620106,7.35009825,1592.9,1592.8,1.256]
[1744275620306,7.35009825,1592.9,1592.8,11.7198]
[1744275621100,7.35009825,1592.9,1592.8,16.7198]
[1744275621306,7.35009825,1592.9,1592.8,22.71579981]
[1744275622513,14.67059055,1593.7,1593.6,1.25537]
[1744275622701,26.02219055,1593.7,1593.6,0.92457]
[1744275623102,26.02219055,1593.7,1593.6,4.71247]
[1744275623310,14.67059055,1593.7,1593.6,4.63757]
[1744275624202,14.67059055,1593.7,1593.6,5.13029682]
[1744275624709,12.24255647,1593.7,1593.6,5.53599682]
[1744275624897,12.24255647,1593.7,1593.6,16.53199663]
[1744275625099,10.80351647,1593.7,1593.6,16.53199663]
[1744275625299,13.21616553,1594.0,1593.7,3.13816]
[1744275625511,13.21616553,1594.0,1593.9,4.46293]
[1744275626101,16.77296553,1594.0,1593.9,4.46293]
[1744275626413,16.77296553,1594.0,1593.9,8.76893]
[1744275627104,16.77296553,1594.0,1593.9,7.5138]
[1744275627307,16.77296553,1594.0,1593.9,5.56113]
[1744275627814,16.77296553,1594.0,1593.9,4.306]
[1744275628005,16.77296553,1594.0,1593.9,5.56113]
[1744275628200,16.77296553,1594.0,1593.9,8.76893]
[1744275628610,16.77296553,1594.0,1593.9,5.56113]
[1744275628801,16.77296553,1594.0,1593.9,8.76893]
[1744275629007,16.77296553,1594.0,1593.9,4.306]
[1744275629207,16.77296553,1594.0,1593.9,5.56113]
[1744275629408,16.77296553,1594.0,1593.9,4.306]
[1744275629915,18.02801553,1594.0,1593.9,3.2078]
[1744275630101,16.77296553,1594.0,1593.9,4.306]
[1744275630516,16.77296553,1594.0,1593.9,5.56113]
[1744275630814,18.02801553,1594.0,1593.9,4.306]
[1744275631413,18.02801553,1594.0,1593.7,4.46304]
[1744275631414,1.25515,1593.9,1593.8,4.306]
[1744275631608,9.00105,1593.9,1593.8,4.306]
[1744275631806,12.20885,1593.9,1593.8,4.306]
[1744275632108,15.9537,1593.9,1593.5,4.31444019]
[1744275632313,9.03375,1593.8,1593.6,1.25534]
[1744275632517,3.8881,1593.7,1593.6,1.25534]
[1744275632715,5.14339,1593.7,1593.5,4.31444019]
[1744275632917,5.14339,1593.7,1593.5,5.56983019]
[1744275633217,3.8881,1593.6,1593.5,5.56983019]
[1744275633916,3.8881,1593.6,1593.5,4.31444019]
[1744275634118,3.8881,1593.6,1593.5,5.56989019]
[1744275635617,6.3892,1593.8,1593.7,1.25529]
[1744275635820,6.3351,1593.8,1593.7,1.25529]
[1744275636517,6.3351,1593.8,1593.7,5.13189]
[1744275636918,3.8363,1593.8,1593.7,5.13189]
[1744275637320,3.7425,1593.9,1593.8,1.25521]
[1744275637519,3.7425,1593.9,1593.8,18.64580981]
[1744275638219,3.6753,1594.0,1593.9,1.25513]
[1744275638420,3.6753,1594.0,1593.9,5.13693]
[1744275638621,3.6753,1594.0,1593.9,1.25513]
[1744275639420,3.6753,1594.0,1593.9,5.13693]
[1744275639924,3.6989,1594.1,1594.0,1.25505]
[1744275640226,3.6989,1594.1,1594.0,4.46285]
[1744275642920,11.9067,1594.1,1593.8,5.99599981]
[1744275643120,7.2592,1594.0,1593.8,5.99599981]
[1744275643319,4.87933,1593.9,1593.8,5.99599981]
[1744275643524,3.6242,1593.9,1593.8,5.99599981]
[1744275643721,4.87933,1593.9,1593.8,5.99599981]
[1744275643917,1.25521,1593.8,1593.7,1.25526]
[1744275644126,3.7187,1593.8,1593.7,1.25529]
[1744275645323,4.97391,1593.8,1593.6,1.2553]
[1744275645524,1.25537,1593.6,1593.5,14.78867]
[1744275645719,7.5694,1593.7,1593.5,13.53324]
[1744275646034,3.5983,1593.6,1593.5,14.78867]
[1744275646214,7.317,1593.6,1593.5,14.78867]
[1744275646419,8.57237,1593.6,1593.5,14.78867]
[1744275646620,7.317,1593.6,1593.5,11.58087]
[1744275647732,3.7187,1593.6,1593.5,14.78867]
[1744275647922,3.7243,1594.0,1593.5,21.67185]
[1744275648233,6.9321,1594.0,1593.8,1.25516]
[1744275648429,3.8359,1593.9,1593.8,5.57516]
[1744275650122,3.8266,1594.2,1593.8,17.24600981]
[1744275650427,3.8249,1594.1,1594.0,4.46285]
[1744275650628,3.8249,1594.1,1594.0,8.78285]
[1744275654826,1.2547,1594.5,1594.3,1.2548]
[1744275655028,3.8529,1594.4,1594.3,5.5748]
[1744275656435,7.639,1594.4,1594.3,5.5748]
[1744275657035,3.2078,1594.6,1594.3,4.32]
[1744275657333,12.17709,1594.5,1594.3,5.57479]
[1744275657530,1.25482,1594.3,1594.0,9.20379981]
[1744275657731,3.7861,1594.2,1594.1,1.25494]
[1744275658540,3.7861,1594.2,1594.1,4.99054]
[1744275658738,7.1363,1594.5,1594.4,1.25474]
[1744275660240,8.39096,1594.5,1594.3,4.32]
[1744275660438,5.10034,1594.4,1594.3,4.32]
[1744275660631,1.25483,1594.3,1594.2,1.25485]
[1744275660931,5.10043,1594.3,1594.2,1.25485]
[1744275661132,5.10043,1594.3,1594.1,11.57090981]
[1744275661338,7.0534,1594.2,1594.0,1.25504]
[1744275661536,7.7472,1594.1,1594.0,1.25504]
[1744275664936,7.7472,1594.1,1594.0,4.46284]
[1744275666142,7.7472,1594.1,1594.0,3.2078]
[1744275666841,1.25505,1594.0,1593.9,4.32]
[1744275667044,4.87415,1594.0,1593.9,4.32]
[1744275667239,3.6191,1594.0,1593.7,13.52379981]
[1744275667441,3.6191,1593.9,1593.7,10.31599981]
[1744275667642,4.87429,1593.9,1593.7,11.57128981]
[1744275667942,3.6191,1593.9,1593.8,1.25521]
[1744275668135,3.6191,1593.9,1593.8,5.06591]
[1744275668841,7.5333,1594.1,1594.0,1.25505]
[1744275669044,11.0583,1594.1,1594.0,4.32]
[1744275669343,12.31327,1594.1,1594.0,4.32]
[1744275669742,12.31327,1594.1,1593.8,5.57517]
[1744275669743,12.31334,1594.1,1593.8,5.57517]
[1744275669937,3.525,1594.0,1593.9,1.25513]
[1744275670744,4.7801,1594.0,1593.8,5.57517]
[1744275671246,8.78832,1594.1,1593.9,1.25513]
[1744275671443,1.25505,1594.0,1593.9,1.25513]
[1744275671643,1.25505,1594.0,1593.8,4.32]
[1744275671845,1.25505,1594.0,1593.8,5.57518]
[1744275672045,7.5333,1594.1,1593.8,5.57518]
[1744275672244,1.25511,1594.0,1593.8,5.57518]
[1744275672542,1.25511,1594.0,1593.9,1.25513]
[1744275672739,1.25511,1594.0,1593.8,4.32]
[1744275672740,7.5333,1594.1,1593.8,5.57514]
[1744275672938,7.5333,1594.1,1593.7,7.25120981]
[1744275672939,1.25513,1593.9,1593.7,7.25120981]
[1744275673244,1.25529,1593.7,1593.6,5.60434]
[1744275673440,1.25529,1593.7,1593.5,0.00944019]
[1744275673441,1.25537,1593.6,1593.5,0.00944019]
[1744275673646,5.13767,1593.6,1593.5,0.00944019]
[1744275673848,5.13767,1593.6,1593.5,1.26489019]
[1744275674145,3.8823,1593.6,1593.5,1.26489019]
[1744275674337,5.13767,1593.6,1593.5,1.26489019]
[1744275674738,3.8823,1593.6,1593.5,1.26489019]
[1744275675143,5.13767,1593.6,1593.5,0.00944019]
[1744275675338,3.8235,1593.8,1593.7,1.25529]
[1744275675938,1.25534,1593.7,1593.5,5.61387019]
[1744275676142,3.811,1593.7,1593.5,4.35844019]
[1744275676347,5.06634,1593.7,1593.5,5.61386019]
[1744275676547,3.811,1593.7,1593.5,5.61386019]
[1744275676741,1.25537,1593.6,1593.5,4.35844019]
[1744275677142,1.25537,1593.6,1593.5,0.00944019]
[1744275678042,1.25537,1593.6,1593.5,1.26489019]
[1744275678244,8.27411,1593.7,1593.6,1.25537]
[1744275678550,5.06631,1593.7,1593.6,1.25537]
[1744275678753,3.811,1593.7,1593.6,5.60437]
[1744275678942,3.811,1593.7,1593.6,9.34307]
[1744275679345,3.8235,1593.8,1593.7,1.25529]
[1744275679551,3.8235,1593.8,1593.7,4.99399]
[1744275680052,5.07871,1593.8,1593.7,4.99399]
[1744275680547,3.8235,1593.8,1593.7,4.99399]
[1744275680849,4.85687667,1593.9,1593.8,1.25521]
[1744275681050,4.85687667,1593.9,1593.8,5.07871]
[1744275681752,6.11200667,1593.9,1593.8,3.8235]
[1744275682551,12.31507667,1594.0,1593.6,11.60031981]
[1744275682852,1.25529,1593.7,1593.6,10.34499981]
[1744275683450,1.25527,1593.8,1593.6,11.60036981]
[1744275683654,3.6667,1593.7,1593.6,11.60036981]
[1744275683853,3.6667,1593.7,1593.6,15.20266981]
[1744275685354,4.92199,1593.7,1593.6,13.94729981]
[1744275685655,4.92199,1593.7,1593.6,10.34499981]
[1744275685950,4.92199,1593.7,1593.6,11.60036981]
[1744275686251,4.92199,1593.7,1593.6,10.34499981]
[1744275686453,3.6667,1593.7,1593.6,11.60036981]
[1744275687055,4.92199,1593.7,1593.6,11.60036981]
[1744275687547,4.92199,1593.7,1593.6,10.34499981]
[1744275688156,4.92199,1593.7,1593.6,5.60437]
[1744275688757,8.12979,1593.7,1593.6,4.349]
[1744275688948,1.25537,1593.6,1593.5,0.00944019]
[1744275689248,5.01367,1593.6,1593.5,0.00944019]
[1744275689553,5.01367,1593.6,1593.5,1.26489019]
[1744275689956,5.01367,1593.6,1593.5,0.00944019]
[1744275690456,10.01367,1593.6,1593.5,0.00944019]
[1744275690653,13.72507,1593.6,1593.5,0.00944019]
[1744275690853,1.2556,1593.3,1593.2,9.85475336]
[1744275691250,6.2556,1593.3,1593.2,9.85475336]
[1744275691448,13.7253,1593.3,1593.2,9.85475336]
[1744275692256,1.25568,1593.2,1593.1,0.00941029]
[1744275692557,4.98018,1593.2,1593.1,0.00941029]
[1744275693551,8.18798,1593.2,1593.1,0.00941029]
[1744275693758,1.25584,1593.0,1592.9,9.85475336]
[1744275693951,4.46364,1593.0,1592.9,9.85475336]
[1744275694557,8.08934,1593.0,1592.9,9.85475336]
[1744275694949,13.08934,1593.0,1592.9,9.85475336]
[1744275695357,22.58944,1593.0,1592.9,9.85475336]
[1744275695656,17.58944,1593.0,1592.9,9.85475336]
[1744275696362,1.25592,1592.9,1592.8,0.00941029]
[1744275696654,4.92202,1592.9,1592.8,0.00941029]
[1744275696859,4.92202,1592.9,1592.8,1.26541029]
[1744275697061,4.92202,1592.9,1592.8,3.91281029]
[1744275697458,4.92202,1592.9,1592.8,0.00941029]
[1744275701256,9.92202,1592.9,1592.8,0.00941029]
[1744275701458,1.25623,1592.5,1592.4,4.351]
[1744275701758,3.14032,1592.7,1592.3,5.02678]
[1744275701759,1.25631,1592.4,1592.3,44.5704]
[1744275701951,8.86661,1592.4,1592.3,3.7704]
[1744275702152,1.25639,1592.3,1592.2,5.60745]
[1744275702354,4.99269,1592.3,1592.2,48.7833]
[1744275703449,4.99269,1592.3,1592.2,7.9833]
[1744275703653,3.88341029,1592.4,1592.2,7.9833]
[1744275703853,8.87602029,1592.4,1592.3,3.6323]
[1744275704759,7.61971029,1592.4,1592.3,4.88869]
[1744275704959,8.87602029,1592.4,1592.3,4.88869]
[1744275705148,7.61971029,1592.4,1592.3,4.88869]
[1744275705353,0.00941029,1592.4,1592.3,9.88869]
[1744275705761,0.00941029,1592.4,1592.3,50.68869]
[1744275706065,1.25605,1592.8,1592.6,1.25613]
[1744275706261,1.25605,1592.8,1592.6,8.81093]
[1744275706460,1.25605,1592.8,1592.7,3.8765]
[1744275706959,1.25608,1592.7,1592.6,4.347]
[1744275707158,5.09568,1592.7,1592.6,4.347]
[1744275707554,1.25615,1592.6,1592.5,7.7799]
[1744275707754,1.25623,1592.5,1592.4,11.102]
[1744275707959,1.25623,1592.5,1592.4,4.347]
[1744275708263,11.2005,1592.6,1592.4,5.60331]
[1744275708459,3.6268,1592.5,1592.4,9.33321]
[1744275708962,4.88303,1592.5,1592.4,8.0769]
[1744275709361,4.88303,1592.5,1592.4,4.347]
[1744275709560,1.25631,1592.4,1592.3,46.796]
[1744275709859,3.6268,1592.4,1592.3,5.996]
[1744275710163,4.88311,1592.4,1592.3,5.996]
[1744275710864,1.25628,1592.5,1592.3,11.05859]
[1744275711064,1.25628,1592.5,1592.4,3.8062]
[1744275711265,3.541,1592.5,1592.4,5.06251]
[1744275711563,8.82991,1592.6,1592.4,5.06251]
[1744275711765,4.79723,1592.5,1592.4,5.06251]
[1744275711968,4.79723,1592.5,1592.4,3.8062]
[1744275712163,4.79723,1592.5,1592.4,5.06251]
[1744275712466,4.79723,1592.5,1592.4,3.8062]
[1744275712667,4.79723,1592.5,1592.4,1.25631]
[1744275713063,4.79723,1592.5,1592.3,5.06255]
[1744275713266,4.79731,1592.4,1592.3,3.8062]
[1744275713463,1.25639,1592.3,1592.2,48.8637]
[1744275713668,1.25639,1592.3,1592.1,0.00941029]
[1744275713669,1.25647,1592.2,1592.1,0.00941029]
[1744275713875,5.12037,1592.2,1592.1,0.00941029]
[1744275714067,8.32817,1592.2,1592.1,0.00941029]
[1744275714370,1.25679,1591.8,1591.7,9.85475336]
[1744275714766,6.25679,1591.8,1591.7,9.85475336]
[1744275714970,1.25694,1591.6,1591.5,4.53016366]
[1744275715170,6.25694,1591.6,1591.5,4.53016366]
[1744275715563,6.25694,1591.6,1591.5,3.21683366]
[1744275715762,10.01674,1591.6,1591.5,3.21683366]
[1744275716663,1.25702,1591.5,1591.4,14.79154034]
[1744275716862,8.28272,1591.5,1591.4,14.79154034]
[1744275717064,17.63172,1591.5,1591.4,14.79154034]
[1744275717563,20.13922,1591.5,1591.4,11.76049034]
[1744275717766,20.13922,1591.5,1591.4,10.07691034]
[1744275717974,20.13922,1591.5,1591.4,6.87355034]
[1744275718165,15.13922,1591.5,1591.4,6.87355034]
[1744275718472,25.97322,1591.5,1591.4,1.54418034]
[1744275718973,25.97322,1591.5,1591.4,0.25744034]
[1744275719175,25.97322,1591.5,1591.4,3.4e-07]
[1744275720873,1.25762,1590.8,1590.6,12.83311]
[1744275721170,3.14311,1591.3,1590.8,1.25755]
[1744275721171,1.25749,1591.0,1590.8,1.25755]
[1744275721367,1.25749,1591.0,1590.9,3.5966]
[1744275721965,5.00219,1591.0,1590.9,3.5966]
[1744275722368,1.2575,1590.9,1590.8,0.00941029]
[1744275722567,5.0022,1590.9,1590.8,3.60601029]
[1744275723871,5.0022,1590.9,1590.8,0.00941029]
[1744275725172,10.0022,1590.9,1590.8,0.00941029]
[1744275725669,5.0022,1590.9,1590.8,0.00941029]
[1744275726274,13.21,1590.9,1590.8,2.9e-07]
[1744275726476,17.561,1590.9,1590.8,2.9e-07]
[1744275727179,23.395,1590.9,1590.8,2.9e-07]
[1744275729179,18.395,1590.9,1590.8,2.9e-07]
[1744275730075,14.044,1590.9,1590.8,2.9e-07]
[1744275732680,19.044,1590.9,1590.8,2.9e-07]
[1744275733080,1.25797,1590.3,1590.2,3.6873]
[1744275735190,4.46577,1590.3,1590.2,3.6873]
[1744275735381,1.25805,1590.2,1590.1,0.00941029]
[1744275736482,5.06875,1590.2,1590.1,0.00941029]
[1744275741898,1.25845,1589.7,1589.6,5.996]
[1744275742187,1.25853,1589.6,1589.5,3.654]
[1744275742588,6.29202,1589.8,1589.4,7.0551]
[1744275742589,1.2586,1589.5,1589.4,7.0551]
[1744275743283,1.2586,1589.5,1589.3,3.66034329]
[1744275743284,1.25868,1589.4,1589.3,3.66034329]
[1744275743891,4.93168,1589.4,1589.3,3.66034329]
[1744275744494,4.93168,1589.4,1589.3,0.00634329]
[1744275744787,15.12068,1589.4,1589.3,0.00634329]